bitfinex/quotes_SOLUSD_20241022
["timestamp","ask_amount","ask_price","bid_price","bid_amount"]
[1729575046794,30.0,168.21,168.16,10.87505603]
[1729575047392,30.0,168.21,168.15,15.9428]
[1729575047585,30.0,168.21,168.15,26.81785603]
[1729575052888,5.9443,168.23,168.15,26.81785603]
[1729575059915,15.6955,168.24,168.15,15.9428]
[1729575060097,5.9445,168.23,168.15,10.87505603]
[1729575066113,5.9449,168.22,168.15,10.87505603]
[1729575066501,15.6955,168.24,168.15,10.87505603]
[1729575066707,5.9449,168.21,168.15,10.87505603]
[1729575066924,5.9456,168.19,168.13,10.87505603]
[1729575067519,5.9452,168.21,168.13,10.87505603]
[1729575072629,5.9453,168.2,168.13,10.87505603]
[1729575075602,5.9459,168.19,168.13,10.87505603]
[1729575075917,30.0,168.18,168.11,68.06169534]
[1729575076122,5.9463,168.17,168.1,10.87505603]
[1729575076639,5.9468,168.16,168.1,10.87505603]
[1729575077929,30.0,168.15,168.1,10.87505603]
[1729575078128,5.9468,168.16,168.1,10.87505603]
[1729575081035,30.0,168.14,168.1,10.87505603]
[1729575082828,30.0,168.14,168.07,22.0256]
[1729575083023,30.0,168.14,168.08,10.87505603]
[1729575085814,35.9476,168.14,168.08,10.87505603]
[1729575086015,5.9481,168.12,168.04,12.68127163]
[1729575086234,5.9488,168.1,168.04,12.68127163]
[1729575086444,30.0,168.11,168.07,10.87505603]
[1729575086628,30.0,168.11,168.09,10.87505603]
[1729575087130,5.9463,168.17,168.09,10.87505603]
[1729575087338,5.9463,168.17,168.11,10.87505603]
[1729575087517,16.3208,168.18,168.05,0.1]
[1729575087721,5.9467,168.16,168.09,10.87505603]
[1729575090138,16.3208,168.18,168.09,10.87505603]
[1729575090329,23.776884,168.17,168.07,10.87505603]
[1729575090513,5.9479,168.13,168.07,10.87505603]
[1729575091135,5.9482,168.12,168.05,10.87505603]
[1729575091329,5.9484,168.12,168.05,10.87505603]
[1729575091717,30.0,168.11,168.05,10.87505603]
[1729575094533,35.9485,168.11,168.05,10.87505603]
[1729575096036,5.9489,168.1,168.04,12.68127163]
[1729575096340,30.0,168.09,168.03,32.94125603]
[1729575098218,22.4233,168.12,168.05,10.87505603]
[1729575098219,16.4752,168.12,168.05,10.87505603]
[1729575098418,15.9422,168.16,168.07,10.87505603]
[1729575098643,15.9422,168.16,168.03,22.0662]
[1729575098644,5.947,168.15,168.09,10.87505603]
[1729575100943,15.9422,168.16,168.09,10.87505603]
[1729575110043,5.9466,168.17,168.09,10.87505603]
[1729575112249,5.9466,168.17,168.11,10.87505603]
[1729575112547,5.946,168.18,168.11,10.87505603]
[1729575117863,5.9464,168.17,168.11,10.87505603]
[1729575118259,5.9472,168.15,168.07,10.87505603]
[1729575119934,23.776884,168.19,168.07,10.87505603]
[1729575120146,5.9477,168.14,168.07,10.87505603]
[1729575120573,5.9481,168.12,168.05,6.6219]
[1729575120746,5.9481,168.12,168.05,17.49695603]
[1729575122165,30.0,168.11,168.05,17.49695603]
[1729575124253,30.0,168.11,168.05,10.87505603]
[1729575128181,5.9488,168.11,168.05,10.87505603]
[1729575131514,5.9478,168.13,168.05,10.87505603]
[1729575131855,22.112,168.14,168.07,10.87505603]
[1729575132364,16.1646,168.14,168.07,10.87505603]
[1729575132970,5.9468,168.16,168.07,10.87505603]
[1729575133682,5.9469,168.16,168.07,10.87505603]
[1729575133867,5.9469,168.16,168.09,10.87505603]
[1729575134063,21.9761,168.18,168.11,10.87505603]
[1729575138097,5.9463,168.18,168.13,10.87505603]
[1729575138388,5.9455,168.2,168.13,10.87505603]
[1729575138687,5.9455,168.2,168.09,15.4772]
[1729575138688,5.945,168.21,168.15,10.87505603]
[1729575158811,16.4213,168.22,168.15,10.87505603]
[1729575159115,5.9445,168.23,168.17,10.87505603]
[1729575161610,5.9431,168.26,168.21,10.87505603]
[1729575161803,30.0,168.22,168.21,10.87505603]
[1729575162485,16.3471,168.27,168.21,10.87505603]
[1729575163608,22.2899,168.27,168.21,10.87505603]
[1729575166013,5.942,168.3,168.23,10.87505603]
[1729575171716,23.776884,168.3,168.2,15.1585]
[1729575171925,23.776884,168.3,168.19,6.2814]
[1729575172233,5.9441,168.24,168.16,27.07275603]
[1729575172521,5.9441,168.24,168.18,10.87505603]
[1729575174402,15.0618,168.27,168.21,10.87505603]
[1729575174607,5.9432,168.26,168.21,10.87505603]
[1729575174817,21.0046,168.27,168.21,10.87505603]
[1729575176728,5.9432,168.26,168.16,16.1977]
[1729575176928,15.0618,168.27,168.19,10.87505603]
[1729575177136,5.9439,168.24,168.17,10.87505603]
[1729575177425,30.0,168.23,168.17,10.87505603]
[1729575180209,35.9443,168.23,168.16,16.1977]
[1729575180411,35.9443,168.23,168.16,10.87505603]
[1729575186229,35.9443,168.23,168.15,6.4355]
[1729575186230,30.0,168.23,168.15,6.4355]
[1729575186442,5.9452,168.21,168.14,10.87505603]
[1729575187635,30.0,168.2,168.14,10.87505603]
[1729575188231,5.9452,168.21,168.14,10.87505603]
[1729575190525,5.9452,168.21,168.16,10.87505603]
[1729575191739,21.0089,168.26,168.14,10.87505603]
[1729575191938,23.776884,168.25,168.14,10.87505603]
[1729575192243,30.0,168.19,168.14,10.87505603]
[1729575192620,35.9456,168.19,168.14,10.87505603]
[1729575192944,5.9462,168.18,168.12,10.87505603]
[1729575193323,30.0,168.19,168.12,10.87505603]
[1729575193529,30.0,168.19,168.14,10.87505603]
[1729575194416,30.0,168.19,168.16,10.87505603]
[1729575194617,5.945,168.21,168.16,10.87505603]
[1729575195534,5.945,168.21,168.14,10.87505603]
[1729575195735,39.820984,168.25,168.12,10.87505603]
[1729575195736,5.946,168.19,168.12,10.87505603]
[1729575196113,5.9463,168.18,168.12,10.87505603]
[1729575197236,30.0,168.17,168.12,10.87505603]
[1729575198144,5.9463,168.18,168.12,10.87505603]
[1729575198745,5.9471,168.15,168.1,6.5267]
[1729575198948,5.9475,168.14,168.09,10.87505603]
[1729575199246,5.947,168.16,168.09,10.87505603]
[1729575199426,5.9476,168.14,168.06,6.2079]
[1729575199625,5.9476,168.14,168.08,10.87505603]
[1729575200741,5.9479,168.13,168.06,6.2079]
[1729575200927,20.0,168.15,168.04,29.12865306]
[1729575201131,30.0,168.12,168.05,10.87505603]
[1729575202546,35.9482,168.12,168.05,10.87505603]
[1729575205126,30.0,168.12,168.03,10.87505603]
[1729575205447,30.0,168.12,168.01,6.2130391]
[1729575205448,5.9508,168.05,168.01,6.2130391]
[1729575205658,5.9508,168.05,167.98,17.43275603]
[1729575206029,5.9508,168.05,167.98,6.5577]
[1729575206746,30.0,168.04,167.98,6.5577]
[1729575209054,30.0,168.04,167.99,10.87505603]
[1729575211765,30.0,168.04,168.01,10.87505603]
[1729575211934,5.9495,168.08,168.01,10.87505603]
[1729575213137,5.9499,168.07,168.01,10.87505603]
[1729575214358,5.9499,168.07,167.96,23.876884]
[1729575214661,5.9499,168.07,167.99,10.87505603]
[1729575218448,5.9499,168.07,168.01,10.87505603]
[1729575220559,43.776884,168.1,168.01,10.87505603]
[1729575220771,5.9495,168.08,168.01,10.87505603]
[1729575224046,5.9488,168.1,168.03,10.87505603]
[1729575224245,5.9488,168.1,168.05,10.87505603]
[1729575224447,30.0,168.06,168.05,10.87505603]
[1729575225241,5.9488,168.1,168.05,10.87505603]
[1729575226963,16.6375,168.11,168.05,10.87505603]
[1729575227461,5.9484,168.12,168.05,10.87505603]
[1729575229972,23.776884,168.11,168.01,15.6051]
[1729575230157,5.9494,168.09,168.02,10.87505603]
[1729575230351,5.9497,168.08,168.02,10.87505603]
[1729575230667,5.9497,168.08,168.01,10.87505603]
[1729575232262,5.9502,168.06,168.01,10.87505603]
[1729575233770,5.9502,168.06,167.99,6.1272]
[1729575233970,5.9502,168.06,168.0,10.87505603]
[1729575234171,5.9509,168.05,167.97,16.0801]
[1729575234468,5.9509,168.05,167.98,10.87505603]
[1729575236263,5.9509,168.05,167.97,16.0801]
[1729575236448,35.9512,168.04,167.97,16.0801]
[1729575236771,35.9512,168.04,167.97,26.95515603]
[1729575237865,30.0,168.04,167.97,26.95515603]
[1729575238055,30.0,168.04,168.01,10.87505603]
[1729575239643,5.9502,168.07,168.01,10.87505603]
[1729575240570,50.268084,168.09,168.01,10.87505603]
[1729575240772,5.9502,168.07,168.01,10.87505603]
[1729575241076,22.0466,168.1,168.03,10.87505603]
[1729575241254,16.0977,168.1,168.03,10.87505603]
[1729575241452,5.9498,168.08,168.03,10.87505603]
[1729575241654,16.0977,168.1,167.97,16.0801]
[1729575241881,5.951,168.04,167.97,16.0801]
[1729575242066,5.951,168.04,167.98,10.87505603]
[1729575242372,35.951,168.04,167.98,10.87505603]
[1729575259071,35.951,168.04,167.95,6.1484]
[1729575259278,35.951,168.04,167.97,10.87505603]
[1729575261192,5.9514,168.03,167.97,10.87505603]
[1729575261489,35.9519,168.02,167.95,6.1484]
[1729575261787,35.9519,168.02,167.96,10.87505603]
[1729575262389,5.9523,168.01,167.96,10.87505603]
[1729575262590,5.9524,168.0,167.96,10.87505603]
[1729575263700,5.952,168.01,167.96,10.87505603]
[1729575264191,30.0,168.02,167.94,15.3926]
[1729575264383,5.952,168.01,167.95,10.87505603]
[1729575266973,30.0,168.02,167.97,10.87505603]
[1729575268479,30.0,168.02,167.99,10.87505603]
[1729575269098,5.9506,168.05,167.99,10.87505603]
[1729575270193,21.0206,168.08,168.01,10.87505603]
[1729575270194,5.9495,168.08,168.01,10.87505603]
[1729575270397,21.3144,168.09,168.03,10.87505603]
[1729575270580,30.0,168.04,168.03,10.87505603]
[1729575271885,5.9495,168.08,168.03,10.87505603]
[1729575275081,15.3652,168.09,168.03,10.87505603]
[1729575275585,21.3144,168.09,168.03,10.87505603]
[1729575278106,5.9495,168.08,168.03,10.87505603]
[1729575279187,5.9505,168.06,167.96,6.2495]
[1729575279393,5.9505,168.06,168.0,10.87505603]
[1729575280997,15.3652,168.09,168.02,10.87505603]
[1729575281198,15.3652,168.09,167.96,75.73619549]
[1729575281199,5.9497,168.08,168.04,10.87505603]
[1729575281396,30.0,168.05,168.04,10.87505603]
[1729575283417,21.3144,168.09,168.04,10.87505603]
[1729575283919,15.3652,168.09,167.97,15.291]
[1729575284092,5.9497,168.08,168.02,10.87505603]
[1729575284912,43.776884,168.07,167.97,15.291]
[1729575285114,43.776884,168.07,167.97,26.16605603]
[1729575285115,5.951,168.04,167.97,26.16605603]
[1729575286492,30.0,168.03,167.97,26.16605603]
[1729575289607,35.9513,168.03,167.97,10.87505603]
[1729575290303,35.9513,168.03,167.93,22.80474688]
[1729575290504,35.9513,168.03,167.96,10.87505603]
[1729575292916,35.9513,168.03,167.98,10.87505603]
[1729575297814,5.9517,168.02,167.98,10.87505603]
[1729575298504,5.9509,168.04,167.93,16.5928]
[1729575298702,14.8774,168.04,167.95,10.87505603]
[1729575298909,5.952,168.02,167.95,10.87505603]
[1729575299914,16.1137,168.06,167.99,10.87505603]
[1729575300812,5.9506,168.05,167.99,10.87505603]
[1729575302613,5.9499,168.07,168.01,10.87505603]
[1729575304142,23.776884,168.1,168.03,10.87505603]
[1729575304314,5.9492,168.09,168.03,10.87505603]
[1729575305427,23.776884,168.1,168.03,10.87505603]
[1729575305625,5.9496,168.08,168.03,10.87505603]
[1729575311232,5.9502,168.07,167.99,15.6299]
[1729575311416,5.9503,168.06,168.01,10.87505603]
[1729575314444,23.776884,168.08,167.98,6.1676]
[1729575314734,20.0,168.09,168.0,10.87505603]
[1729575314735,5.9509,168.05,168.0,10.87505603]
[1729575315748,5.9509,168.05,167.98,6.1676]
[1729575315925,5.9509,168.05,167.95,15.7929]
[1729575316242,5.9509,168.05,167.98,10.87505603]
[1729575316440,30.0,168.03,167.98,10.87505603]
[1729575317129,30.0,168.03,167.95,15.7929]
[1729575317327,30.0,168.03,167.98,10.87505603]
[1729575318037,5.9509,168.05,167.98,10.87505603]
[1729575327852,23.776884,168.04,167.95,15.7929]
[1729575328051,5.9524,168.0,167.94,6.4585]
[1729575328353,5.9524,168.0,167.95,10.87505603]
[1729575333054,30.0,167.99,167.95,10.87505603]
[1729575333431,15.406,168.05,167.94,6.4585]
[1729575333628,5.953,167.99,167.94,17.33355603]
[1729575334734,5.9523,168.01,167.94,17.33355603]
[1729575335861,5.9524,168.0,167.94,17.33355603]
[1729575339442,23.776884,168.04,167.96,10.87505603]
[1729575339640,15.406,168.05,167.98,10.87505603]
[1729575339641,5.9513,168.03,167.98,10.87505603]
[1729575339956,16.3105,168.1,168.02,10.87505603]
[1729575340159,16.3105,168.1,167.97,16.6303]
[1729575340160,30.0,168.03,167.97,16.6303]
[1729575340460,30.0,168.03,168.02,10.87505603]
[1729575340646,5.9495,168.08,168.02,10.87505603]
[1729575340843,5.9494,168.09,168.04,10.87505603]
[1729575347060,5.9495,168.08,168.04,10.87505603]
[1729575347248,5.9499,168.07,168.03,10.87505603]
[1729575351162,16.3105,168.1,168.03,10.87505603]
[1729575351366,23.776884,168.09,168.01,10.87505603]
[1729575352471,5.9507,168.05,168.01,10.87505603]
[1729575352647,5.9514,168.03,167.94,6.4585]
[1729575352854,30.0,168.02,167.97,10.87505603]
[1729575357182,5.9514,168.03,167.97,10.87505603]
[1729575357358,14.8738,168.08,167.97,10.87505603]
[1729575357359,5.9517,168.02,167.97,10.87505603]
[1729575359183,14.8738,168.08,167.97,10.87505603]
[1729575359373,23.776884,168.07,167.99,10.87505603]
[1729575359685,5.951,168.04,167.99,10.87505603]
[1729575362166,23.776884,168.07,167.94,6.4585]
[1729575362167,5.9505,168.06,168.01,10.87505603]
[1729575362375,5.9503,168.06,168.01,10.87505603]
[1729575362877,5.9499,168.07,168.01,10.87505603]
[1729575363970,5.9495,168.09,168.03,10.87505603]
[1729575365482,5.9495,168.08,168.03,10.87505603]
[1729575365973,5.9492,168.09,168.03,10.87505603]
[1729575366482,22.2593,168.1,168.05,10.87505603]
[1729575366661,30.0,168.06,168.05,10.87505603]
[1729575367776,5.9481,168.12,168.05,10.87505603]
[1729575367966,5.9481,168.12,168.08,10.87505603]
[1729575374087,23.776884,168.13,168.0,21.8317]
[1729575374385,5.9492,168.09,168.04,10.87505603]
[1729575375790,5.9481,168.12,168.06,10.87505603]
[1729575376177,5.9485,168.11,168.06,10.87505603]
[1729575376973,5.9485,168.11,168.0,21.8317]
[1729575377180,5.9485,168.11,168.06,10.87505603]
[1729575377590,4.65842659,168.21,168.1,10.87505603]
[1729575377794,105.03497181,168.22,168.2,10.87505603]
[1729575378003,30.0,168.21,168.2,10.87505603]
[1729575378294,104.0,168.22,168.2,10.87505603]
[1729575382776,104.0,168.25,168.2,10.87505603]
[1729575382982,104.0,168.25,168.23,10.87505603]
[1729575383880,104.0,168.24,168.23,10.87505603]
[1729575386197,104.0,168.24,168.23,17.39065603]
[1729575388092,6.0932,168.32,168.23,17.39065603]
[1729575388296,104.0,168.31,168.26,10.87505603]
[1729575388913,5.9422,168.29,168.19,6.2969]
[1729575389213,104.0,168.28,168.2,10.87505603]
[1729575389507,109.943,168.27,168.2,10.87505603]
[1729575390514,104.0,168.27,168.19,6.2969]
[1729575390718,109.9432,168.26,168.19,10.87505603]
[1729575391598,104.0,168.25,168.19,10.87505603]
[1729575391797,104.0,168.24,168.19,10.87505603]
[1729575392018,104.0,168.23,168.22,23.776884]
[1729575392214,9.67197979,168.31,168.23,15.9888]
[1729575392413,9.67197979,168.3,168.28,10.87505603]
[1729575392716,9.67197979,168.3,168.23,15.9888]
[1729575392717,0.152,168.32,168.23,15.9888]
[1729575393013,0.152,168.32,168.28,10.87505603]
[1729575396525,0.152,168.32,168.25,16.95990132]
[1729575402811,0.152,168.32,168.23,15.9888]
[1729575403028,0.152,168.32,168.25,16.95990132]
[1729575407313,23.928884,168.32,168.22,6.3353]
[1729575407619,5.942,168.3,168.22,6.3353]
[1729575416421,5.942,168.3,168.23,10.86005125]
[1729575416617,23.928884,168.32,168.23,10.86005125]
[1729575416838,5.9421,168.29,168.23,10.86005125]
[1729575418723,5.9417,168.31,168.23,10.86005125]
[1729575418917,23.928884,168.32,168.18,22.3669]
[1729575419240,23.928884,168.32,168.17,6.20502019]
[1729575419241,23.776884,168.27,168.17,6.20502019]
[1729575419536,5.944,168.24,168.16,10.86005125]
[1729575419916,5.9442,168.23,168.16,10.86005125]
[1729575420442,5.9442,168.23,168.15,6.2076596]
[1729575421142,5.9434,168.26,168.16,10.86005125]
[1729575421348,5.9434,168.26,168.18,10.86005125]
[1729575422823,5.9439,168.24,168.16,10.86005125]
[1729575424645,5.9428,168.27,168.2,10.86005125]
[1729575424829,23.776884,168.29,168.2,10.86005125]
[1729575425139,5.9432,168.26,168.2,10.86005125]
[1729575425740,5.9424,168.28,168.2,10.86005125]
[1729575425939,5.9424,168.28,168.22,10.86005125]
[1729575427226,15.0432,168.31,168.22,10.86005125]
[1729575427428,15.0432,168.31,168.24,10.86005125]
[1729575427429,20.9849,168.31,168.24,10.86005125]
[1729575427621,5.9418,168.3,168.24,10.86005125]
[1729575427944,5.9421,168.29,168.24,10.86005125]
[1729575432040,5.9421,168.29,168.21,21.4328]
[1729575432241,5.9421,168.29,168.21,32.29285125]
[1729575432939,5.9428,168.27,168.16,22.0204]
[1729575433253,5.9428,168.27,168.19,10.86005125]
[1729575433641,5.9431,168.27,168.19,10.86005125]
[1729575439451,5.9421,168.29,168.21,10.86005125]
[1729575444367,5.9421,168.29,168.2,10.86005125]
[1729575445555,15.0432,168.31,168.2,10.86005125]
[1729575445742,5.943,168.27,168.2,10.86005125]
[1729575446073,23.776884,168.3,168.18,10.86005125]
[1729575446365,5.9432,168.26,168.18,10.86005125]
[1729575446745,5.9432,168.26,168.16,28.12332832]
[1729575446966,5.9432,168.26,168.18,10.86005125]
[1729575447771,5.9438,168.25,168.16,28.12332832]
[1729575448063,5.9438,168.25,168.16,38.98337957]
[1729575448264,5.9438,168.25,168.18,10.86005125]
[1729575457577,5.9438,168.25,168.16,32.78045125]
[1729575461065,5.9438,168.25,168.16,21.9204]
[1729575461266,5.9438,168.25,168.16,32.78045125]
[1729575462858,5.9439,168.24,168.16,32.78045125]
[1729575463078,5.9438,168.24,168.16,32.78045125]
[1729575469682,5.9438,168.24,168.16,21.9204]
[1729575469982,5.9462,168.18,168.13,6.20380218]
[1729575470180,5.9462,168.18,168.11,15.3437]
[1729575478376,5.9463,168.17,168.11,15.3437]
[1729575478574,5.9463,168.17,168.08,23.70127246]
[1729575480790,5.9463,168.17,168.09,10.86005125]
[1729575491178,15.5235,168.19,168.11,10.86005125]
[1729575491388,5.9452,168.21,168.13,10.86005125]
[1729575491994,22.1398,168.23,168.13,10.86005125]
[1729575492194,5.9446,168.22,168.15,10.86005125]
[1729575493479,22.1398,168.23,168.15,10.86005125]
[1729575493674,28.0843,168.23,168.15,10.86005125]
[1729575494188,22.1398,168.23,168.15,10.86005125]
[1729575494396,5.9447,168.22,168.15,10.86005125]
[1729575496996,5.9447,168.22,168.17,10.86005125]
[1729575497305,5.9436,168.25,168.21,10.86005125]
[1729575500088,5.9436,168.25,168.19,10.86005125]
[1729575500578,5.9436,168.25,168.21,10.86005125]
[1729575503179,5.9436,168.25,168.14,6.2474]
[1729575503385,5.9436,168.25,168.19,10.86005125]
[1729575506680,15.0363,168.27,168.19,10.86005125]
[1729575506900,5.9444,168.23,168.17,10.86005125]
[1729575519517,5.9444,168.23,168.14,6.2474]
[1729575519810,5.9444,168.23,168.17,10.86005125]
[1729575536005,5.9446,168.22,168.17,10.86005125]
[1729575539333,15.0363,168.27,168.19,10.86005125]
[1729575539508,5.9424,168.29,168.21,10.86005125]
[1729575540112,5.9424,168.29,168.23,10.86005125]
[1729575540427,16.4687,168.31,168.23,10.86005125]
[1729575540645,5.9418,168.3,168.23,10.86005125]
[1729575544634,5.9418,168.3,168.2,23.776884]
[1729575544942,5.9418,168.3,168.24,10.86005125]
[1729575545751,5.9406,168.34,168.28,10.86005125]
[1729575546045,5.9407,168.33,168.28,10.86005125]
[1729575546250,6.093,168.32,168.28,10.86005125]
[1729575546948,0.152,168.32,168.31,10.86005125]
[1729575547446,0.152,168.32,168.3,23.776884]
[1729575547623,16.0105,168.45,168.3,23.776884]
[1729575547824,21.947,168.45,168.37,10.86005125]
[1729575548037,5.9368,168.44,168.37,10.86005125]
[1729575548448,16.0105,168.45,168.39,10.86005125]
[1729575548945,5.9364,168.46,168.39,10.86005125]
[1729575549147,16.1708291,168.49,168.36,6.4187]
[1729575549455,16.1708291,168.49,168.41,10.86005125]
[1729575549747,5.9358,168.47,168.41,10.86005125]
[1729575550147,5.9358,168.47,168.36,6.4187]
[1729575550357,5.9358,168.47,168.41,10.86005125]
[1729575551033,0.6443291,168.49,168.43,10.86005125]
[1729575551231,0.6443291,168.49,168.37,23.776884]
[1729575551437,0.6443291,168.49,168.44,10.86005125]
[1729575552150,0.6443291,168.49,168.37,23.776884]
[1729575552457,5.9354,168.48,168.37,23.776884]
[1729575552621,0.6443291,168.49,168.4,10.86005125]
[1729575552826,5.9359,168.47,168.4,10.86005125]
[1729575553127,5.9364,168.46,168.36,6.4187]
[1729575553329,23.776884,168.46,168.37,10.86005125]
[1729575553552,30.395584,168.48,168.37,10.86005125]
[1729575553924,0.6443291,168.49,168.41,10.86005125]
[1729575554121,6.5795291,168.49,168.41,10.86005125]
[1729575554540,0.6443291,168.49,168.43,10.86005125]
[1729575555154,0.6443291,168.49,168.47,10.86005125]
[1729575555324,0.6443291,168.49,168.48,10.86005125]
[1729575558841,0.6443291,168.49,168.45,23.776884]
[1729575559053,0.6443291,168.49,168.48,10.86005125]
[1729575559636,0.6443291,168.49,168.44,46.63131696]
[1729575559953,0.6443291,168.49,168.47,10.86005125]
[1729575561333,0.6443291,168.49,168.44,46.63131696]
[1729575561537,0.6443291,168.49,168.45,10.86005125]
[1729575563156,0.6443291,168.49,168.47,10.86005125]
[1729575564362,0.6443291,168.49,168.45,10.86005125]
[1729575568352,0.6443291,168.49,168.42,7.86536302]
[1729575568353,6.5796291,168.49,168.41,10.86005125]
[1729575568666,0.6443291,168.49,168.39,69.89971696]
[1729575568872,5.9361,168.47,168.4,10.86005125]
[1729575569071,5.9361,168.46,168.39,69.89971696]
[1729575569369,16.2095291,168.49,168.39,57.49136821]
[1729575569546,5.9369,168.44,168.39,46.63131696]
[1729575569962,5.9369,168.44,168.37,10.86005125]
[1729575570470,20.0,168.47,168.35,33.76465125]
[1729575570769,5.9376,168.42,168.35,17.15055125]
[1729575571967,5.9376,168.42,168.35,10.86005125]
[1729575572770,5.9376,168.42,168.33,57.49136821]
[1729575572969,43.776884,168.44,168.33,10.86005125]
[1729575574278,5.9371,168.43,168.35,10.86005125]
[1729575575177,20.0,168.44,168.35,10.86005125]
[1729575575382,5.9375,168.42,168.35,10.86005125]
[1729575580481,5.9375,168.42,168.33,23.776884]
[1729575580663,6.3186,168.45,168.32,6.20255015]
[1729575580864,23.776884,168.42,168.32,6.20255015]
[1729575581065,5.9389,168.38,168.31,22.4215]
[1729575581264,23.776884,168.42,168.32,10.86005125]
[1729575581490,5.9385,168.4,168.32,10.86005125]
[1729575582488,5.9385,168.4,168.34,10.86005125]
[1729575585984,5.9385,168.4,168.32,10.86005125]
[1729575597796,5.9385,168.4,168.34,10.86005125]
[1729575602902,14.8422,168.44,168.38,10.86005125]
[1729575602903,5.9368,168.44,168.38,10.86005125]
[1729575604704,1.03295413,168.54,168.45,23.776884]
[1729575604903,16.3633,168.6,168.47,10.86005125]
[1729575604904,5.9319,168.58,168.47,10.86005125]
[1729575606810,20.0,168.59,168.48,23.776884]
[1729575607493,22.2946,168.6,168.48,23.776884]
[1729575607915,22.2946,168.6,168.47,10.86005125]
[1729575607916,22.2946,168.6,168.53,10.86005125]
[1729575608596,16.3633,168.6,168.53,10.86005125]
[1729575608915,20.0,168.59,168.53,10.86005125]
[1729575609909,25.9315,168.59,168.53,10.86005125]
[1729575612506,5.9323,168.57,168.47,23.776884]
[1729575612709,5.9323,168.57,168.51,10.86005125]
[1729575612889,25.9317,168.59,168.51,10.86005125]
[1729575613210,5.9319,168.58,168.51,10.86005125]
[1729575615088,20.0,168.59,168.44,76.02369549]
[1729575615310,20.0,168.59,168.5,10.86005125]
[1729575615311,5.9327,168.56,168.5,10.86005125]
[1729575615510,20.0,168.59,168.5,10.86005125]
[1729575615720,5.9321,168.58,168.5,10.86005125]
[1729575616014,20.0,168.59,168.5,10.86005125]
[1729575616187,5.9323,168.57,168.46,69.48669549]
[1729575616515,5.9323,168.57,168.5,10.86005125]
[1729575623121,31.1916,168.6,168.49,10.86005125]
[1729575623309,5.9323,168.57,168.49,10.86005125]
[1729575631319,16.3633,168.6,168.45,23.776884]
[1729575631522,0.2,168.58,168.44,6.537]
[1729575631728,5.9358,168.47,168.4,6.1405]
[1729575632024,31.3353,168.5,168.4,17.00055125]
[1729575632214,5.9354,168.48,168.4,17.00055125]
[1729575632795,16.4983,168.5,168.4,6.1405]
[1729575633118,5.9357,168.48,168.4,17.00055125]
[1729575636927,5.9365,168.45,168.39,15.1166]
[1729575637218,5.9359,168.47,168.39,25.97665125]
[1729575638105,5.9359,168.47,168.41,10.86005125]
[1729575638313,5.9354,168.49,168.41,10.86005125]
[1729575639314,5.9354,168.48,168.41,10.86005125]
[1729575639532,16.4983,168.5,168.41,10.86005125]
[1729575639843,5.9342,168.52,168.45,10.86005125]
[1729575640139,5.9342,168.52,168.47,10.86005125]
[1729575640822,15.8766,168.54,168.47,10.86005125]
[1729575641132,5.9337,168.53,168.47,10.86005125]
[1729575641813,20.0,168.58,168.49,10.86005125]
[1729575642012,5.9329,168.56,168.49,10.86005125]
[1729575645113,29.9424,168.59,168.47,15.9563]
[1729575645320,5.9331,168.55,168.48,10.86005125]
[1729575648741,15.1131,168.59,168.5,10.86005125]
[1729575649546,5.9325,168.57,168.5,10.86005125]
[1729575651531,21.0449,168.59,168.5,10.86005125]
[1729575651729,21.0449,168.59,168.52,10.86005125]
[1729575652038,5.932,168.58,168.52,10.86005125]
[1729575653251,15.1131,168.59,168.47,15.9563]
[1729575653447,5.9337,168.53,168.47,26.81635125]
[1729575653829,5.9337,168.53,168.47,10.86005125]
[1729575654343,20.0,168.57,168.47,10.86005125]
[1729575654533,5.9332,168.55,168.47,10.86005125]
[1729575655149,23.776884,168.58,168.47,10.86005125]
[1729575655350,5.9334,168.54,168.47,10.86005125]
[1729575656053,5.9339,168.53,168.47,10.86005125]
[1729575656354,5.9336,168.54,168.47,10.86005125]
[1729575657953,5.9336,168.54,168.45,23.776884]